[Event "Titled Tuesday Blitz June 20 Early 2023"]
[White "De La Villa Garcia, Jesus Maria"]
[Black "Aradhya, Garg"]
[WhiteFideId "2200040"]
[BlackFideId "25006746"]
[WhiteElo "2493"]
[BlackElo "2263"]
[Result "1-0"]
[Round "3"]
[TimeControl "180+2"]
[Date "2023.06.20"]
[WhiteClock "0:00:33"]
[BlackClock "0:00:01"]
[Board "90"]

1. c4 {[%clk 0:03:00]}  c5 {[%clk 0:02:58]} 2. Nf3 {[%clk 0:03:00]}  Nc6 {[%clk 0:02:57]} 3. d4 {[%clk 0:03:01]}  cxd4 {[%clk 0:02:57]} 4. Nxd4 {[%clk 0:03:02]}  Nf6 {[%clk 0:02:56]} 5. Nc3 {[%clk 0:03:02]}  e6 {[%clk 0:02:56]} 6. g3 {[%clk 0:03:02]}  d5 {[%clk 0:02:53]} 7. Bg2 {[%clk 0:03:01]}  Bc5 {[%clk 0:02:44]} 8. Nb3 {[%clk 0:02:59]}  Bb6 {[%clk 0:02:44]} 9. cxd5 {[%clk 0:02:59]}  exd5 {[%clk 0:02:44]} 10. Bg5 {[%clk 0:02:55]}  Bxf2+ {[%clk 0:02:37]} 11. Kf1 {[%clk 0:02:52]}  Be6 {[%clk 0:02:20]} 12. e3 {[%clk 0:02:38]}  h6 {[%clk 0:02:18]} 13. Bf4 {[%clk 0:02:37]}  Ng4 {[%clk 0:02:04]} 14. Nxd5 {[%clk 0:02:27]}  O-O {[%clk 0:01:28]} 15. h3 {[%clk 0:02:24]}  Bxd5 {[%clk 0:01:28]} 16. Qxg4 {[%clk 0:02:22]}  f5 {[%clk 0:01:00]} 17. Qe2 {[%clk 0:02:14]}  Bxb3 {[%clk 0:00:48]} 18. axb3 {[%clk 0:02:10]}  g5 {[%clk 0:00:47]} 19. Rd1 {[%clk 0:02:08]}  Qe7 {[%clk 0:00:46]} 20. Bd6 {[%clk 0:02:05]}  Qxe3 {[%clk 0:00:45]} 21. Bxf8 {[%clk 0:02:03]}  Rxf8 {[%clk 0:00:44]} 22. Qxf2 {[%clk 0:02:02]}  Qe5 {[%clk 0:00:43]} 23. Kg1 {[%clk 0:01:49]}  f4 {[%clk 0:00:43]} 24. Kh2 {[%clk 0:01:49]}  Qc7 {[%clk 0:00:28]} 25. gxf4 {[%clk 0:01:42]}  Rxf4 {[%clk 0:00:27]} 26. Qg3 {[%clk 0:01:42]}  Ne5 {[%clk 0:00:19]} 27. Rhf1 {[%clk 0:01:41]}  Ng6 {[%clk 0:00:18]} 28. Rxf4 {[%clk 0:01:41]}  Nxf4 {[%clk 0:00:18]} 29. Kh1 {[%clk 0:01:38]}  Qc2 {[%clk 0:00:16]} 30. Rf1 {[%clk 0:01:32]}  Kh7 {[%clk 0:00:08]} 31. Re1 {[%clk 0:01:30]}  Qxb2 {[%clk 0:00:07]} 32. Be4+ {[%clk 0:01:29]}  Kg7 {[%clk 0:00:07]} 33. Bxb7 {[%clk 0:01:22]}  a5 {[%clk 0:00:06]} 34. Qe3 {[%clk 0:01:16]}  a4 {[%clk 0:00:07]} 35. Qe7+ {[%clk 0:01:12]}  Kg6 {[%clk 0:00:07]} 36. Be4+ {[%clk 0:01:11]}  Kh5 {[%clk 0:00:07]} 37. bxa4 {[%clk 0:01:02]}  Qf2 {[%clk 0:00:06]} 38. Bc6 {[%clk 0:00:48]}  Kh4 {[%clk 0:00:06]} 39. Qe3 {[%clk 0:00:43]}  Qc2 {[%clk 0:00:06]} 40. Be4 {[%clk 0:00:40]}  Qxa4 {[%clk 0:00:06]} 41. Qf2+ {[%clk 0:00:40]}  Kh5 {[%clk 0:00:04]} 42. Bf3+ {[%clk 0:00:41]}  Kg6 {[%clk 0:00:04]} 43. Qe3 {[%clk 0:00:41]}  Qb4 {[%clk 0:00:02]} 44. Qe8+ {[%clk 0:00:41]}  Kf6 {[%clk 0:00:02]} 45. Qe5+ {[%clk 0:00:32]}  Kg6 {[%clk 0:00:02]} 46. Rc1 {[%clk 0:00:33]}  Qb6 {[%clk 0:00:01]} 47. Rc6+ {[%clk 0:00:33]}  Qxc6 {[%clk 0:00:01]} 48. Bxc6 {[%clk 0:00:34]}  Kh5 {[%clk 0:00:02]} 49. Qf5 {[%clk 0:00:33]}  Kh4 {[%clk 0:00:01]} 50. Qg4# {[%clk 0:00:33]} 1-0


[Site "https://www.chess.com"]

[Event "Titled Tuesday Blitz June 20 Early 2023"]
[White "Fernandez Guillen, Ernesto J."]
[Black "Rios Escobar, Adan"]
[WhiteFideId "3512428"]
[BlackFideId "3403645"]
[WhiteElo "2434"]
[BlackElo "2489"]
[Result "1-0"]
[Round "3"]
[TimeControl "180+2"]
[Date "2023.06.20"]
[WhiteClock "0:01:15"]
[BlackClock "0:00:00"]
[Board "92"]

1. e4 {[%clk 0:03:00]}  c5 {[%clk 0:02:58]} 2. Nf3 {[%clk 0:02:55]}  d6 {[%clk 0:02:56]} 3. d4 {[%clk 0:02:53]}  cxd4 {[%clk 0:02:57]} 4. Nxd4 {[%clk 0:02:51]}  Nf6 {[%clk 0:02:58]} 5. Nc3 {[%clk 0:02:51]}  a6 {[%clk 0:02:58]} 6. Bc4 {[%clk 0:02:50]}  e6 {[%clk 0:02:57]} 7. Bb3 {[%clk 0:02:46]}  b5 {[%clk 0:02:56]} 8. f3 {[%clk 0:02:44]}  Qd7 {[%clk 0:02:13]} 9. Be3 {[%clk 0:02:40]}  Nc6 {[%clk 0:02:14]} 10. Qd2 {[%clk 0:02:38]}  Nxd4 {[%clk 0:02:13]} 11. Bxd4 {[%clk 0:02:37]}  Bb7 {[%clk 0:02:10]} 12. g4 {[%clk 0:02:36]}  Qc7 {[%clk 0:02:06]} 13. g5 {[%clk 0:02:36]}  Nd7 {[%clk 0:02:07]} 14. O-O-O {[%clk 0:02:36]}  Rc8 {[%clk 0:02:03]} 15. Kb1 {[%clk 0:02:28]}  Ne5 {[%clk 0:01:59]} 16. Qf2 {[%clk 0:02:26]}  Bc6 {[%clk 0:01:43]} 17. Rhe1 {[%clk 0:02:24]}  Qb7 {[%clk 0:01:39]} 18. f4 {[%clk 0:02:23]}  Nc4 {[%clk 0:01:33]} 19. f5 {[%clk 0:02:16]}  e5 {[%clk 0:01:27]} 20. Be3 {[%clk 0:02:07]}  Bxe4 {[%clk 0:01:03]} 21. Nxe4 {[%clk 0:02:06]}  Qxe4 {[%clk 0:01:02]} 22. Bd4 {[%clk 0:02:05]}  Qc6 {[%clk 0:00:54]} 23. Bxc4 {[%clk 0:02:05]}  bxc4 {[%clk 0:00:32]} 24. f6 {[%clk 0:01:55]}  Qc7 {[%clk 0:00:12]} 25. Bxe5 {[%clk 0:01:22]}  dxe5 {[%clk 0:00:11]} 26. Qf5 {[%clk 0:01:23]}  Be7 {[%clk 0:00:00]} 27. fxe7 {[%clk 0:01:15]} 1-0


[Site "https://www.chess.com"]

[Event "Titled Tuesday Blitz June 20 Early 2023"]
[White "Veiga, Jose Francisco R P Neves"]
[Black "Vafin, Ayrat"]
[WhiteFideId "1930087"]
[BlackFideId "4146530"]
[WhiteElo "2319"]
[BlackElo "2317"]
[Result "1-0"]
[Round "3"]
[TimeControl "180+2"]
[Date "2023.06.20"]
[WhiteClock "0:00:15"]
[BlackClock "0:00:00"]
[Board "93"]

1. c4 {[%clk 0:03:00]}  e6 {[%clk 0:02:56]} 2. Nc3 {[%clk 0:02:59]}  d5 {[%clk 0:02:56]} 3. e3 {[%clk 0:02:59]}  Nf6 {[%clk 0:02:55]} 4. Nf3 {[%clk 0:02:59]}  Be7 {[%clk 0:02:55]} 5. b3 {[%clk 0:02:59]}  O-O {[%clk 0:02:55]} 6. Bb2 {[%clk 0:02:59]}  b6 {[%clk 0:02:54]} 7. cxd5 {[%clk 0:03:00]}  exd5 {[%clk 0:02:52]} 8. Be2 {[%clk 0:02:57]}  Bb7 {[%clk 0:02:31]} 9. Rc1 {[%clk 0:02:56]}  a6 {[%clk 0:02:30]} 10. O-O {[%clk 0:02:56]}  Nbd7 {[%clk 0:02:28]} 11. d4 {[%clk 0:02:51]}  Bd6 {[%clk 0:02:25]} 12. Bd3 {[%clk 0:02:39]}  Qe7 {[%clk 0:02:24]} 13. Ne2 {[%clk 0:02:38]}  Ne4 {[%clk 0:02:16]} 14. Ng3 {[%clk 0:02:38]}  Nxg3 {[%clk 0:01:57]} 15. hxg3 {[%clk 0:02:37]}  f5 {[%clk 0:01:50]} 16. Qc2 {[%clk 0:02:36]}  g6 {[%clk 0:01:37]} 17. Ne5 {[%clk 0:02:35]}  Bxe5 {[%clk 0:01:17]} 18. dxe5 {[%clk 0:02:36]}  Nc5 {[%clk 0:01:17]} 19. b4 {[%clk 0:02:30]}  Ne6 {[%clk 0:01:13]} 20. Qb3 {[%clk 0:02:11]}  Rfc8 {[%clk 0:01:01]} 21. Ba3 {[%clk 0:01:49]}  Qd7 {[%clk 0:01:00]} 22. Rc3 {[%clk 0:01:20]}  Kg7 {[%clk 0:00:59]} 23. Rfc1 {[%clk 0:01:14]}  h5 {[%clk 0:00:59]} 24. Qd1 {[%clk 0:00:52]}  Rh8 {[%clk 0:00:56]} 25. Qe2 {[%clk 0:00:44]}  h4 {[%clk 0:00:48]} 26. Bb2 {[%clk 0:00:35]}  hxg3 {[%clk 0:00:41]} 27. Rxc7 {[%clk 0:00:30]}  Qxc7 {[%clk 0:00:02]} 28. Rxc7+ {[%clk 0:00:30]}  Nxc7 {[%clk 0:00:03]} 29. e6+ {[%clk 0:00:30]}  Kh6 {[%clk 0:00:03]} 30. Qf3 {[%clk 0:00:22]}  Nxe6 {[%clk 0:00:02]} 31. Qxg3 {[%clk 0:00:20]}  d4 {[%clk 0:00:03]} 32. Qh4+ {[%clk 0:00:20]}  Kg7 {[%clk 0:00:03]} 33. Qe7+ {[%clk 0:00:21]}  Kh6 {[%clk 0:00:01]} 34. exd4 {[%clk 0:00:16]}  Nf4 {[%clk 0:00:01]} 35. Bc1 {[%clk 0:00:15]}  g5 {[%clk 0:00:01]} 36. Bxf4 {[%clk 0:00:15]}  gxf4 {[%clk 0:00:00]} 37. Bxf5 {[%clk 0:00:15]} 1-0


[Site "https://www.chess.com"]

[Event "Titled Tuesday Blitz June 20 Early 2023"]
[White "Rahman, Masruri"]
[Black "Kokoszczynski, Jan"]
[WhiteFideId "7101163"]
[BlackFideId "1174460"]
[WhiteElo "2256"]
[BlackElo "2139"]
[Result "0-1"]
[Round "3"]
[TimeControl "180+2"]
[Date "2023.06.20"]
[WhiteClock "0:00:00"]
[BlackClock "0:00:05"]
[Board "94"]

1. d4 {[%clk 0:03:00]}  Nf6 {[%clk 0:03:00]} 2. Bf4 {[%clk 0:03:00]}  e6 {[%clk 0:02:53]} 3. e3 {[%clk 0:02:57]}  d5 {[%clk 0:02:54]} 4. Nd2 {[%clk 0:02:56]}  c5 {[%clk 0:02:54]} 5. c3 {[%clk 0:02:56]}  Nc6 {[%clk 0:02:55]} 6. Ngf3 {[%clk 0:02:55]}  Bd6 {[%clk 0:02:55]} 7. Bg3 {[%clk 0:02:56]}  O-O {[%clk 0:02:50]} 8. Bd3 {[%clk 0:02:55]}  cxd4 {[%clk 0:02:36]} 9. exd4 {[%clk 0:02:54]}  b6 {[%clk 0:02:36]} 10. Ne5 {[%clk 0:02:52]}  Ne7 {[%clk 0:02:35]} 11. Bh4 {[%clk 0:02:50]}  Ng6 {[%clk 0:02:34]} 12. Bxg6 {[%clk 0:02:48]}  hxg6 {[%clk 0:02:32]} 13. Bg5 {[%clk 0:02:48]}  Qc7 {[%clk 0:02:18]} 14. Qe2 {[%clk 0:02:44]}  a5 {[%clk 0:02:11]} 15. h4 {[%clk 0:02:08]}  Ba6 {[%clk 0:01:56]} 16. Qe3 {[%clk 0:02:07]}  Bxe5 {[%clk 0:01:50]} 17. Qxe5 {[%clk 0:01:59]}  Qxe5+ {[%clk 0:01:50]} 18. dxe5 {[%clk 0:02:00]}  Nd7 {[%clk 0:01:51]} 19. Nf3 {[%clk 0:01:56]}  Rfc8 {[%clk 0:01:30]} 20. Be3 {[%clk 0:01:46]}  Bd3 {[%clk 0:01:21]} 21. h5 {[%clk 0:01:31]}  gxh5 {[%clk 0:01:04]} 22. Rxh5 {[%clk 0:01:32]}  b5 {[%clk 0:01:05]} 23. Kd2 {[%clk 0:01:25]}  Bg6 {[%clk 0:01:05]} 24. Rh4 {[%clk 0:01:24]}  Rc4 {[%clk 0:01:03]} 25. Bd4 {[%clk 0:01:21]}  Rac8 {[%clk 0:00:45]} 26. Rah1 {[%clk 0:01:22]}  Kf8 {[%clk 0:00:45]} 27. Rf4 {[%clk 0:01:01]}  b4 {[%clk 0:00:36]} 28. Nh4 {[%clk 0:01:00]}  Bh7 {[%clk 0:00:34]} 29. Rh3 {[%clk 0:00:50]}  a4 {[%clk 0:00:18]} 30. Rhf3 {[%clk 0:00:50]}  a3 {[%clk 0:00:13]} 31. bxa3 {[%clk 0:00:20]}  bxc3+ {[%clk 0:00:13]} 32. Bxc3 {[%clk 0:00:13]}  Rxf4 {[%clk 0:00:11]} 33. Rxf4 {[%clk 0:00:14]}  Ke8 {[%clk 0:00:10]} 34. Bd4 {[%clk 0:00:11]}  Rc2+ {[%clk 0:00:09]} 35. Ke1 {[%clk 0:00:10]}  Rxa2 {[%clk 0:00:10]} 36. Rf3 {[%clk 0:00:08]}  Be4 {[%clk 0:00:07]} 37. Rc3 {[%clk 0:00:07]}  f6 {[%clk 0:00:06]} 38. exf6 {[%clk 0:00:07]}  gxf6 {[%clk 0:00:07]} 39. f3 {[%clk 0:00:07]}  Bh7 {[%clk 0:00:07]} 40. Kf1 {[%clk 0:00:04]}  e5 {[%clk 0:00:06]} 41. Bf2 {[%clk 0:00:04]}  Kf7 {[%clk 0:00:06]} 42. Kg1 {[%clk 0:00:03]}  Ke6 {[%clk 0:00:07]} 43. g4 {[%clk 0:00:02]}  d4 {[%clk 0:00:07]} 44. Rc6+ {[%clk 0:00:03]}  Kd5 {[%clk 0:00:06]} 45. Rc7 {[%clk 0:00:04]}  Kd6 {[%clk 0:00:07]} 46. Ra7 {[%clk 0:00:03]}  d3 {[%clk 0:00:07]} 47. Ng2 {[%clk 0:00:02]}  d2 {[%clk 0:00:07]} 48. Ne3 {[%clk 0:00:03]}  Ra1+ {[%clk 0:00:07]} 49. Kg2 {[%clk 0:00:03]}  d1=Q {[%clk 0:00:08]} 50. Nxd1 {[%clk 0:00:04]}  Rxd1 {[%clk 0:00:09]} 51. a4 {[%clk 0:00:04]}  Bd3 {[%clk 0:00:09]} 52. a5 {[%clk 0:00:04]}  Ra1 {[%clk 0:00:09]} 53. Be3 {[%clk 0:00:04]}  Ra3 {[%clk 0:00:08]} 54. Kg3 {[%clk 0:00:05]}  Bc4 {[%clk 0:00:08]} 55. Kf2 {[%clk 0:00:05]}  Bd5 {[%clk 0:00:08]} 56. Ra6+ {[%clk 0:00:05]}  Ke7 {[%clk 0:00:08]} 57. Ra7 {[%clk 0:00:05]}  Ke6 {[%clk 0:00:08]} 58. Ra6+ {[%clk 0:00:04]}  Ke7 {[%clk 0:00:08]} 59. Ra7 {[%clk 0:00:05]}  Kd8 {[%clk 0:00:08]} 60. g5 {[%clk 0:00:04]}  fxg5 {[%clk 0:00:07]} 61. Bxg5+ {[%clk 0:00:05]}  Kc8 {[%clk 0:00:07]} 62. Be3 {[%clk 0:00:04]}  Bb7 {[%clk 0:00:06]} 63. a6 {[%clk 0:00:03]}  Rxa6 {[%clk 0:00:05]} 64. Rxa6 {[%clk 0:00:03]}  Bxa6 {[%clk 0:00:06]} 65. f4 {[%clk 0:00:03]}  e4 {[%clk 0:00:07]} 66. Bd4 {[%clk 0:00:03]}  Kd8 {[%clk 0:00:06]} 67. Ke3 {[%clk 0:00:04]}  Bd3 {[%clk 0:00:07]} 68. f5 {[%clk 0:00:05]}  Ke8 {[%clk 0:00:07]} 69. Kf4 {[%clk 0:00:06]}  Kf7 {[%clk 0:00:08]} 70. Kg5 {[%clk 0:00:05]}  Nb8 {[%clk 0:00:07]} 71. Be3 {[%clk 0:00:05]}  Nc6 {[%clk 0:00:07]} 72. Kf4 {[%clk 0:00:06]}  Ke7 {[%clk 0:00:06]} 73. Bc5+ {[%clk 0:00:06]}  Kf7 {[%clk 0:00:06]} 74. Bf2 {[%clk 0:00:07]}  Nb4 {[%clk 0:00:07]} 75. Be1 {[%clk 0:00:06]}  Nd5+ {[%clk 0:00:06]} 76. Ke5 {[%clk 0:00:07]}  Ne7 {[%clk 0:00:06]} 77. Bh4 {[%clk 0:00:04]}  Nc6+ {[%clk 0:00:05]} 78. Kf4 {[%clk 0:00:04]}  Bb1 {[%clk 0:00:06]} 79. Bf2 {[%clk 0:00:04]}  Nb4 {[%clk 0:00:06]} 80. Bd4 {[%clk 0:00:03]}  Nd3+ {[%clk 0:00:05]} 81. Ke3 {[%clk 0:00:03]}  Nb4 {[%clk 0:00:05]} 82. Kf4 {[%clk 0:00:03]}  Nc6 {[%clk 0:00:05]} 83. Be3 {[%clk 0:00:03]}  Kf6 {[%clk 0:00:06]} 84. Bf2 {[%clk 0:00:03]}  Kf7 {[%clk 0:00:04]} 85. Bh4 {[%clk 0:00:04]}  Nd4 {[%clk 0:00:03]} 86. Bf2 {[%clk 0:00:03]}  Nxf5 {[%clk 0:00:04]} 87. Be1 {[%clk 0:00:02]}  Ne7 {[%clk 0:00:04]} 88. Bd2 {[%clk 0:00:02]}  Ke6 {[%clk 0:00:04]} 89. Be1 {[%clk 0:00:03]}  Kd5 {[%clk 0:00:05]} 90. Ke3 {[%clk 0:00:02]}  Nc6 {[%clk 0:00:05]} 91. Ke2 {[%clk 0:00:03]}  Ne5 {[%clk 0:00:05]} 92. Kd1 {[%clk 0:00:04]}  e3 {[%clk 0:00:05]} 93. Bg3 {[%clk 0:00:04]}  Nc4 {[%clk 0:00:04]} 94. Ke2 {[%clk 0:00:04]}  Ke4 {[%clk 0:00:04]} 95. Ke1 {[%clk 0:00:04]}  Bd3 {[%clk 0:00:05]} 96. Bh4 {[%clk 0:00:04]}  Nd2 {[%clk 0:00:05]} 97. Bg3 {[%clk 0:00:03]}  Nf3+ {[%clk 0:00:05]} 98. Kd1 {[%clk 0:00:04]}  Kf5 {[%clk 0:00:05]} 99. Kc1 {[%clk 0:00:00]}  Kg4 {[%clk 0:00:05]} 0-1


[Site "https://www.chess.com"]

[Event "Titled Tuesday Blitz June 20 Early 2023"]
[White "Lamard, Guillaume"]
[Black "Morgunov, Anatoly"]
[WhiteFideId "600261"]
[BlackFideId "4145909"]
[WhiteElo "2413"]
[BlackElo "2237"]
[Result "1-0"]
[Round "3"]
[TimeControl "180+2"]
[Date "2023.06.20"]
[WhiteClock "0:00:37"]
[BlackClock "0:00:00"]
[Board "96"]

1. d4 {[%clk 0:03:00]}  e6 {[%clk 0:02:59]} 2. c4 {[%clk 0:03:00]}  Nf6 {[%clk 0:02:59]} 3. Nf3 {[%clk 0:02:58]}  b6 {[%clk 0:02:59]} 4. g3 {[%clk 0:02:56]}  Ba6 {[%clk 0:02:59]} 5. b3 {[%clk 0:02:53]}  Bb4+ {[%clk 0:02:59]} 6. Bd2 {[%clk 0:02:52]}  Be7 {[%clk 0:03:00]} 7. Nc3 {[%clk 0:02:52]}  d5 {[%clk 0:02:59]} 8. cxd5 {[%clk 0:02:51]}  exd5 {[%clk 0:02:55]} 9. Bg2 {[%clk 0:02:51]}  Bb7 {[%clk 0:02:55]} 10. O-O {[%clk 0:02:51]}  O-O {[%clk 0:02:56]} 11. Bf4 {[%clk 0:02:44]}  c5 {[%clk 0:02:54]} 12. h4 {[%clk 0:02:36]}  h6 {[%clk 0:02:52]} 13. e3 {[%clk 0:02:35]}  Na6 {[%clk 0:02:52]} 14. Rc1 {[%clk 0:02:33]}  Nc7 {[%clk 0:02:51]} 15. Re1 {[%clk 0:02:29]}  Ne6 {[%clk 0:02:51]} 16. Be5 {[%clk 0:02:11]}  Rc8 {[%clk 0:02:50]} 17. Qd3 {[%clk 0:02:08]}  a6 {[%clk 0:02:37]} 18. Red1 {[%clk 0:02:06]}  c4 {[%clk 0:02:10]} 19. Qb1 {[%clk 0:02:03]}  b5 {[%clk 0:02:07]} 20. bxc4 {[%clk 0:02:00]}  dxc4 {[%clk 0:02:07]} 21. d5 {[%clk 0:01:55]}  Nc5 {[%clk 0:01:17]} 22. d6 {[%clk 0:01:54]}  Nd3 {[%clk 0:01:17]} 23. dxe7 {[%clk 0:01:47]}  Qxe7 {[%clk 0:01:18]} 24. Rxd3 {[%clk 0:01:24]}  cxd3 {[%clk 0:01:12]} 25. Bd4 {[%clk 0:01:23]}  b4 {[%clk 0:01:03]} 26. Na4 {[%clk 0:01:22]}  Rxc1+ {[%clk 0:01:00]} 27. Qxc1 {[%clk 0:01:23]}  Rc8 {[%clk 0:00:55]} 28. Qd1 {[%clk 0:01:17]}  Be4 {[%clk 0:00:43]} 29. Nb2 {[%clk 0:01:06]}  Qe6 {[%clk 0:00:33]} 30. Nxd3 {[%clk 0:01:02]}  Bxd3 {[%clk 0:00:26]} 31. Qxd3 {[%clk 0:01:01]}  Rc1+ {[%clk 0:00:27]} 32. Bf1 {[%clk 0:01:01]}  Ne4 {[%clk 0:00:08]} 33. Kg2 {[%clk 0:00:57]}  Qg4 {[%clk 0:00:05]} 34. Ne5 {[%clk 0:00:47]}  Qf5 {[%clk 0:00:01]} 35. Nf3 {[%clk 0:00:41]}  Qg4 {[%clk 0:00:00]} 36. Qxa6 {[%clk 0:00:37]} 1-0


[Site "https://www.chess.com"]

[Event "Titled Tuesday Blitz June 20 Early 2023"]
[White "Anuj Shrivatri"]
[Black "Papayan, Oleg"]
[WhiteFideId "35070924"]
[BlackFideId "4193911"]
[WhiteElo "2298"]
[BlackElo "2167"]
[Result "1-0"]
[Round "3"]
[TimeControl "180+2"]
[Date "2023.06.20"]
[WhiteClock "0:00:35"]
[BlackClock "0:00:06"]
[Board "97"]

1. Nf3 {[%clk 0:03:00]}  Nf6 {[%clk 0:02:59]} 2. b3 {[%clk 0:02:57]}  c5 {[%clk 0:02:58]} 3. c4 {[%clk 0:02:57]}  Nc6 {[%clk 0:02:55]} 4. Bb2 {[%clk 0:02:57]}  d5 {[%clk 0:02:55]} 5. cxd5 {[%clk 0:02:57]}  Nxd5 {[%clk 0:02:54]} 6. Nc3 {[%clk 0:02:58]}  Nc7 {[%clk 0:02:43]} 7. Rc1 {[%clk 0:02:52]}  Bg4 {[%clk 0:02:10]} 8. Ne4 {[%clk 0:02:31]}  b6 {[%clk 0:02:00]} 9. d4 {[%clk 0:02:31]}  Bxf3 {[%clk 0:01:45]} 10. exf3 {[%clk 0:02:32]}  Nxd4 {[%clk 0:01:46]} 11. Bxd4 {[%clk 0:02:31]}  cxd4 {[%clk 0:01:47]} 12. Rxc7 {[%clk 0:02:31]}  Qxc7 {[%clk 0:01:47]} 13. Bb5+ {[%clk 0:02:32]}  Kd8 {[%clk 0:01:48]} 14. Qxd4+ {[%clk 0:02:33]}  Kc8 {[%clk 0:01:48]} 15. O-O {[%clk 0:02:31]}  a6 {[%clk 0:01:25]} 16. Qd5 {[%clk 0:02:06]}  Ra7 {[%clk 0:01:14]} 17. Qd2 {[%clk 0:01:50]}  e6 {[%clk 0:01:13]} 18. Rc1 {[%clk 0:01:50]}  Bc5 {[%clk 0:01:13]} 19. b4 {[%clk 0:01:50]}  axb5 {[%clk 0:01:12]} 20. bxc5 {[%clk 0:01:50]}  Rd8 {[%clk 0:00:58]} 21. Qe2 {[%clk 0:01:39]}  Kb8 {[%clk 0:00:49]} 22. Qxb5 {[%clk 0:01:28]}  Ra5 {[%clk 0:00:48]} 23. Qb2 {[%clk 0:01:27]}  Rxc5 {[%clk 0:00:25]} 24. Nxc5 {[%clk 0:01:21]}  Qxc5 {[%clk 0:00:24]} 25. g3 {[%clk 0:01:19]}  Qd4 {[%clk 0:00:22]} 26. Qc2 {[%clk 0:01:16]}  Qd7 {[%clk 0:00:19]} 27. Qxh7 {[%clk 0:01:14]}  g6 {[%clk 0:00:17]} 28. Qg7 {[%clk 0:01:08]}  Rc8 {[%clk 0:00:15]} 29. Qe5+ {[%clk 0:01:08]}  Ka7 {[%clk 0:00:16]} 30. Rb1 {[%clk 0:01:07]}  Rc5 {[%clk 0:00:15]} 31. Qf4 {[%clk 0:01:05]}  Ra5 {[%clk 0:00:14]} 32. Qb4 {[%clk 0:01:02]}  Qc7 {[%clk 0:00:07]} 33. Rb2 {[%clk 0:01:02]}  Qc5 {[%clk 0:00:07]} 34. Qd2 {[%clk 0:01:01]}  Qd5 {[%clk 0:00:07]} 35. Qe2 {[%clk 0:00:55]}  Ra3 {[%clk 0:00:06]} 36. Kg2 {[%clk 0:00:53]}  Rd3 {[%clk 0:00:04]} 37. a4 {[%clk 0:00:52]}  Ra3 {[%clk 0:00:04]} 38. Rb5 {[%clk 0:00:51]}  Qc6 {[%clk 0:00:02]} 39. Qd1 {[%clk 0:00:47]}  Rc3 {[%clk 0:00:02]} 40. Rb4 {[%clk 0:00:43]}  Rc4 {[%clk 0:00:02]} 41. Rxc4 {[%clk 0:00:42]}  Qxc4 {[%clk 0:00:03]} 42. Qd7+ {[%clk 0:00:43]}  Ka6 {[%clk 0:00:04]} 43. h4 {[%clk 0:00:42]}  f5 {[%clk 0:00:03]} 44. Qe8 {[%clk 0:00:40]}  Ka5 {[%clk 0:00:02]} 45. Qxg6 {[%clk 0:00:39]}  Kxa4 {[%clk 0:00:03]} 46. h5 {[%clk 0:00:39]}  b5 {[%clk 0:00:03]} 47. h6 {[%clk 0:00:39]}  b4 {[%clk 0:00:04]} 48. Qg7 {[%clk 0:00:39]}  Qc3 {[%clk 0:00:03]} 49. Qxc3 {[%clk 0:00:35]}  bxc3 {[%clk 0:00:03]} 50. h7 {[%clk 0:00:36]}  c2 {[%clk 0:00:04]} 51. h8=Q {[%clk 0:00:37]}  c1=Q {[%clk 0:00:05]} 52. Qe8+ {[%clk 0:00:38]}  Kb4 {[%clk 0:00:05]} 53. Qxe6 {[%clk 0:00:38]}  Qc2 {[%clk 0:00:05]} 54. Qd6+ {[%clk 0:00:38]}  Kc4 {[%clk 0:00:05]} 55. Qc6+ {[%clk 0:00:38]}  Kd3 {[%clk 0:00:05]} 56. Qxc2+ {[%clk 0:00:38]}  Kxc2 {[%clk 0:00:06]} 57. g4 {[%clk 0:00:34]}  fxg4 {[%clk 0:00:07]} 58. fxg4 {[%clk 0:00:34]}  Kd3 {[%clk 0:00:07]} 59. g5 {[%clk 0:00:35]}  Ke4 {[%clk 0:00:08]} 60. g6 {[%clk 0:00:35]}  Kf5 {[%clk 0:00:09]} 61. g7 {[%clk 0:00:36]}  Kg6 {[%clk 0:00:09]} 62. g8=Q+ {[%clk 0:00:37]}  Kh6 {[%clk 0:00:03]} 63. Kg3 {[%clk 0:00:34]}  Kh5 {[%clk 0:00:04]} 64. Kf4 {[%clk 0:00:34]}  Kh6 {[%clk 0:00:05]} 65. Kf5 {[%clk 0:00:34]}  Kh5 {[%clk 0:00:06]} 66. Qg5# {[%clk 0:00:35]} 1-0


[Site "https://www.chess.com"]

[Event "Titled Tuesday Blitz June 20 Early 2023"]
[White "Timerkhanov, Alexander"]
[Black "Luna Javier, Edgar Froylan"]
[WhiteFideId "24177938"]
[BlackFideId "5120101"]
[WhiteElo "2278"]
[BlackElo "2091"]
[Result "1-0"]
[Round "3"]
[TimeControl "180+2"]
[Date "2023.06.20"]
[WhiteClock "0:01:06"]
[BlackClock "0:00:15"]
[Board "100"]

1. d4 {[%clk 0:03:00]}  Nf6 {[%clk 0:02:59]} 2. Bg5 {[%clk 0:03:00]}  d5 {[%clk 0:02:58]} 3. Nd2 {[%clk 0:03:00]}  Nbd7 {[%clk 0:02:57]} 4. Ngf3 {[%clk 0:02:58]}  h6 {[%clk 0:02:55]} 5. Bh4 {[%clk 0:02:58]}  g5 {[%clk 0:02:55]} 6. Bg3 {[%clk 0:02:58]}  Bg7 {[%clk 0:02:56]} 7. e3 {[%clk 0:02:56]}  Nf8 {[%clk 0:02:49]} 8. Bd3 {[%clk 0:02:55]}  Bg4 {[%clk 0:02:46]} 9. c4 {[%clk 0:02:54]}  Bh5 {[%clk 0:02:21]} 10. h4 {[%clk 0:02:51]}  g4 {[%clk 0:02:16]} 11. Ne5 {[%clk 0:02:51]}  N8d7 {[%clk 0:01:55]} 12. Qb3 {[%clk 0:02:47]}  dxc4 {[%clk 0:01:34]} 13. Ndxc4 {[%clk 0:02:25]}  Nb6 {[%clk 0:01:16]} 14. Rc1 {[%clk 0:02:03]}  O-O {[%clk 0:01:12]} 15. O-O {[%clk 0:02:00]}  c6 {[%clk 0:01:04]} 16. a4 {[%clk 0:01:45]}  Nbd5 {[%clk 0:01:03]} 17. Qxb7 {[%clk 0:01:41]}  Rb8 {[%clk 0:01:02]} 18. Qxa7 {[%clk 0:01:37]}  Nb4 {[%clk 0:00:44]} 19. Bb1 {[%clk 0:01:25]}  Nfd5 {[%clk 0:00:43]} 20. Nd3 {[%clk 0:01:17]}  Ra8 {[%clk 0:00:39]} 21. Qc5 {[%clk 0:01:09]}  Rxa4 {[%clk 0:00:26]} 22. Nxb4 {[%clk 0:01:07]}  Nxb4 {[%clk 0:00:15]} 23. Qxh5 {[%clk 0:01:06]} 1-0


[Site "https://www.chess.com"]